[Event "*** Titled Tuesday Blitz"]
[Site "Chess.com"]
[Date "2021.03.30"]
[Round "7"]
[White "chessmachine14"]
[Black "MikeSailer"]
[Result "1-0"]
[WhiteElo "2329"]
[BlackElo "2127"]
[TimeControl "180+1"]
[EndTime "11:18:14 PDT"]
[Termination "chessmachine14 won by resignation"]

1. e4 {[%clk 0:03:00.9]} 1... d5 {[%clk 0:03:00.5]} 2. exd5 {[%clk 0:02:51.6]}
2... Qxd5 {[%clk 0:03:00.3]} 3. Qf3 {[%clk 0:02:46.2]} 3... Qxf3 {[%clk
0:02:59.7]} 4. Nxf3 {[%clk 0:02:46.3]} 4... Nf6 {[%clk 0:03:00.2]} 5. Be2 {[%clk
0:02:46.5]} 5... Bf5 {[%clk 0:02:59]} 6. d3 {[%clk 0:02:44.7]} 6... Nc6 {[%clk
0:02:59.5]} 7. h3 {[%clk 0:02:42.1]} 7... O-O-O {[%clk 0:02:59.8]} 8. Bf4 {[%clk
0:02:40.3]} 8... h6 {[%clk 0:02:57.9]} 9. Nbd2 {[%clk 0:02:39.3]} 9... g5 {[%clk
0:02:58.5]} 10. Bh2 {[%clk 0:02:38.6]} 10... e6 {[%clk 0:02:59.2]} 11. O-O-O
{[%clk 0:02:38.3]} 11... Bc5 {[%clk 0:02:59.4]} 12. Rhf1 {[%clk 0:02:34.3]}
12... g4 {[%clk 0:02:55.9]} 13. hxg4 {[%clk 0:02:31.3]} 13... Nxg4 {[%clk
0:02:55.8]} 14. Bg3 {[%clk 0:02:31.4]} 14... h5 {[%clk 0:02:55.3]} 15. Nh4
{[%clk 0:02:10.5]} 15... Bh7 {[%clk 0:02:51.6]} 16. Ndf3 {[%clk 0:02:00.4]}
16... Ne7 {[%clk 0:02:23.1]} 17. d4 {[%clk 0:01:53.4]} 17... Bd6 {[%clk
0:02:23.1]} 18. Ng5 {[%clk 0:01:39.7]} 18... Bxg3 {[%clk 0:02:15]} 19. fxg3
{[%clk 0:01:39.5]} 19... Bg6 {[%clk 0:02:10.5]} 20. Nxg6 {[%clk 0:01:38.2]}
20... fxg6 {[%clk 0:02:10.6]} 21. Bxg4 {[%clk 0:01:37.6]} 21... hxg4 {[%clk
0:02:10.4]} 22. Nf7 {[%clk 0:01:37.7]} 22... Nf5 {[%clk 0:02:08.5]} 23. Nxd8
{[%clk 0:01:34.6]} 23... Rxd8 {[%clk 0:02:08.1]} 24. Rf4 {[%clk 0:01:34.7]}
24... g5 {[%clk 0:01:53.2]} 25. Re4 {[%clk 0:01:33.7]} 25... Nxg3 {[%clk
0:01:47.4]} 26. Rxg4 {[%clk 0:01:31.9]} 26... Ne2+ {[%clk 0:01:42.4]} 27. Kb1
{[%clk 0:01:31.8]} 27... Rd5 {[%clk 0:01:40.5]} 28. c3 {[%clk 0:01:28.6]} 28...
Kd7 {[%clk 0:01:35.1]} 29. Re4 {[%clk 0:01:25.4]} 29... Nf4 {[%clk 0:01:30.4]}
30. g3 {[%clk 0:01:25.6]} 30... Nh5 {[%clk 0:01:27.2]} 31. Re3 {[%clk 0:01:19]}
31... g4 {[%clk 0:01:22.8]} 32. Rde1 {[%clk 0:01:16.2]} 32... Ng7 {[%clk
0:01:04.1]} 33. Re4 {[%clk 0:01:12.5]} 33... Rg5 {[%clk 0:01:02.2]} 34. Kc2
{[%clk 0:00:51.7]} 34... Rg6 {[%clk 0:00:59.7]} 35. Kd3 {[%clk 0:00:50.7]} 35...
Nf5 {[%clk 0:01:00.2]} 36. Rg1 {[%clk 0:00:48.5]} 36... Rh6 {[%clk 0:01:00.9]}
37. Rxg4 {[%clk 0:00:48.3]} 37... Rh2 {[%clk 0:00:56.9]} 38. Re4 {[%clk
0:00:42.4]} 38... Rxb2 {[%clk 0:00:51.1]} 39. Re2 {[%clk 0:00:42.5]} 39... Rb5
{[%clk 0:00:42.4]} 40. g4 {[%clk 0:00:42.6]} 40... Ng7 {[%clk 0:00:42.7]} 41. g5
{[%clk 0:00:42.6]} 41... Rf5 {[%clk 0:00:42.1]} 42. g6 {[%clk 0:00:42.3]} 42...
Ke7 {[%clk 0:00:42.2]} 43. Rh2 {[%clk 0:00:36.8]} 43... Kf6 {[%clk 0:00:39.8]}
44. Rh8 {[%clk 0:00:36.3]} 44... Ra5 {[%clk 0:00:25.6]} 45. Rf8+ {[%clk
0:00:35.4]} 45... Ke7 {[%clk 0:00:24.2]} 46. Rf7+ {[%clk 0:00:35.7]} 1-0

[Event "*** Titled Tuesday Blitz"]
[Site "Chess.com"]
[Date "2021.03.30"]
[Round "7"]
[White "Tacticus_Severus"]
[Black "BeyondMadness"]
[Result "1-0"]
[WhiteElo "2075"]
[BlackElo "2270"]
[TimeControl "180+1"]
[EndTime "11:18:15 PDT"]
[Termination "Tacticus_Severus won on time"]

1. e4 {[%clk 0:03:00.9]} 1... c5 {[%clk 0:02:56.6]} 2. Nf3 {[%clk 0:03:00.9]}
2... Nc6 {[%clk 0:02:56]} 3. d4 {[%clk 0:03:01.3]} 3... cxd4 {[%clk 0:02:56.1]}
4. Nxd4 {[%clk 0:03:02.2]} 4... Nf6 {[%clk 0:02:56.1]} 5. Nc3 {[%clk 0:03:02.7]}
5... e5 {[%clk 0:02:56.3]} 6. Ndb5 {[%clk 0:03:03.2]} 6... d6 {[%clk 0:02:54.7]}
7. Bg5 {[%clk 0:03:03.4]} 7... a6 {[%clk 0:02:54.6]} 8. Na3 {[%clk 0:03:03.8]}
8... b5 {[%clk 0:02:54.5]} 9. Nd5 {[%clk 0:03:03.8]} 9... Be7 {[%clk 0:02:54]}
10. Bxf6 {[%clk 0:03:04.1]} 10... Bxf6 {[%clk 0:02:54.2]} 11. c3 {[%clk
0:03:05]} 11... O-O {[%clk 0:02:51.7]} 12. Nc2 {[%clk 0:03:05.5]} 12... Rb8
{[%clk 0:02:51.4]} 13. Ncb4 {[%clk 0:03:04.9]} 13... Nxb4 {[%clk 0:02:42.8]} 14.
Nxb4 {[%clk 0:03:05.8]} 14... Bb7 {[%clk 0:02:40.7]} 15. Nd5 {[%clk 0:03:04.9]}
15... Bg5 {[%clk 0:02:40.1]} 16. Be2 {[%clk 0:03:04.3]} 16... Rc8 {[%clk
0:02:16.3]} 17. a4 {[%clk 0:02:57.4]} 17... bxa4 {[%clk 0:02:09.3]} 18. Rxa4
{[%clk 0:02:55.3]} 18... a5 {[%clk 0:02:09]} 19. O-O {[%clk 0:02:47]} 19... g6
{[%clk 0:01:57.7]} 20. b4 {[%clk 0:02:30.5]} 20... axb4 {[%clk 0:01:53.2]} 21.
cxb4 {[%clk 0:02:26.3]} 21... f5 {[%clk 0:01:32.5]} 22. Bf3 {[%clk 0:02:19.8]}
22... Rc1 {[%clk 0:01:21.5]} 23. Qb3 {[%clk 0:02:11.7]} 23... Rxf1+ {[%clk
0:01:16.2]} 24. Kxf1 {[%clk 0:02:12.6]} 24... Kh8 {[%clk 0:01:13.1]} 25. b5
{[%clk 0:01:52.9]} 25... fxe4 {[%clk 0:01:07.5]} 26. Bxe4 {[%clk 0:01:50.3]}
26... Bxd5 {[%clk 0:00:57.4]} 27. Qxd5 {[%clk 0:01:43.1]} 27... Qb6 {[%clk
0:00:57.3]} 28. Bf3 {[%clk 0:01:26.6]} 28... Bd8 {[%clk 0:00:47.4]} 29. Ra6
{[%clk 0:01:20.3]} 29... Qb8 {[%clk 0:00:35.6]} 30. Rxd6 {[%clk 0:01:11.9]}
30... Bf6 {[%clk 0:00:28.9]} 31. b6 {[%clk 0:00:56.6]} 31... Qc8 {[%clk
0:00:16.2]} 32. b7 {[%clk 0:00:47]} 32... Qc1+ {[%clk 0:00:15.7]} 33. Qd1 {[%clk
0:00:46.6]} 33... Qc4+ {[%clk 0:00:15.3]} 34. Qe2 {[%clk 0:00:15.9]} 34... Qc1+
{[%clk 0:00:12.3]} 35. Rd1 {[%clk 0:00:15.6]} 35... Qc7 {[%clk 0:00:09.8]} 36.
g3 {[%clk 0:00:12.5]} 36... Re8 {[%clk 0:00:05.2]} 37. Qe4 {[%clk 0:00:12]}
37... Bg7 {[%clk 0:00:02.7]} 38. Kg2 {[%clk 0:00:11.5]} 1-0

[Event "*** Titled Tuesday Blitz"]
[Site "Chess.com"]
[Date "2021.03.30"]
[Round "7"]
[White "JiiHart"]
[Black "kidagent"]
[Result "0-1"]
[WhiteElo "2056"]
[BlackElo "2320"]
[TimeControl "180+1"]
[EndTime "11:18:16 PDT"]
[Termination "kidagent won by resignation"]

1. e4 {[%clk 0:03:00.9]} 1... c5 {[%clk 0:02:59.7]} 2. Nf3 {[%clk 0:03:00.9]}
2... d6 {[%clk 0:03:00.2]} 3. d4 {[%clk 0:03:01.3]} 3... cxd4 {[%clk 0:03:01.1]}
4. Nxd4 {[%clk 0:03:01.9]} 4... Nf6 {[%clk 0:03:01.4]} 5. Nc3 {[%clk 0:03:02.4]}
5... a6 {[%clk 0:03:01.9]} 6. Bg5 {[%clk 0:03:02.2]} 6... e6 {[%clk 0:03:02.4]}
7. f4 {[%clk 0:03:02.4]} 7... b5 {[%clk 0:03:02.4]} 8. a3 {[%clk 0:02:38]} 8...
Be7 {[%clk 0:02:51.9]} 9. Qe2 {[%clk 0:02:31.3]} 9... Bb7 {[%clk 0:02:42.2]} 10.
O-O-O {[%clk 0:02:29.6]} 10... Nbd7 {[%clk 0:02:41.7]} 11. g4 {[%clk 0:02:21.7]}
11... Rc8 {[%clk 0:02:31.7]} 12. Bg2 {[%clk 0:02:00]} 12... Qa5 {[%clk
0:02:14.1]} 13. Nb3 {[%clk 0:01:51.6]} 13... Qb6 {[%clk 0:02:11.3]} 14. Bh4
{[%clk 0:00:35.5]} 14... Rxc3 {[%clk 0:01:19.7]} 15. bxc3 {[%clk 0:00:33.9]}
15... d5 {[%clk 0:00:50.3]} 16. Bf2 {[%clk 0:00:32.1]} 16... Qc7 {[%clk
0:00:48]} 17. exd5 {[%clk 0:00:30.4]} 17... Nxd5 {[%clk 0:00:41.1]} 18. Bxd5
{[%clk 0:00:29.8]} 18... Bxd5 {[%clk 0:00:40.7]} 19. Rxd5 {[%clk 0:00:29.7]}
19... exd5 {[%clk 0:00:39.7]} 20. Re1 {[%clk 0:00:29.9]} 20... Qxf4+ {[%clk
0:00:32.4]} 21. Be3 {[%clk 0:00:27.8]} 21... Qe4 {[%clk 0:00:25.6]} 22. Nc5
{[%clk 0:00:16.9]} 22... Bxc5 {[%clk 0:00:18.3]} 23. Bxc5 {[%clk 0:00:17.8]}
23... Nxc5 {[%clk 0:00:17.8]} 24. Qf2 {[%clk 0:00:15.7]} 24... O-O {[%clk
0:00:16.5]} 25. Rxe4 {[%clk 0:00:15.7]} 25... Nxe4 {[%clk 0:00:16.9]} 26. Qd4
{[%clk 0:00:15.9]} 26... Rd8 {[%clk 0:00:15.1]} 27. Kb2 {[%clk 0:00:16.3]} 27...
Nd6 {[%clk 0:00:13.6]} 28. Qb6 {[%clk 0:00:15.2]} 28... Nc4+ {[%clk 0:00:13.7]}
29. Kb3 {[%clk 0:00:13.6]} 29... Nxb6 {[%clk 0:00:14.6]} 30. Kb4 {[%clk
0:00:13.4]} 30... Nc4 {[%clk 0:00:14.4]} 31. Kc5 {[%clk 0:00:13.3]} 31... Nxa3
{[%clk 0:00:14.4]} 32. Kd4 {[%clk 0:00:13.3]} 32... Nxc2+ {[%clk 0:00:14.7]} 33.
Kd3 {[%clk 0:00:13.4]} 33... Na3 {[%clk 0:00:15]} 34. Kd4 {[%clk 0:00:13.8]}
34... Nc4 {[%clk 0:00:15.2]} 35. Kd3 {[%clk 0:00:14.1]} 35... a5 {[%clk
0:00:14.9]} 36. Kd4 {[%clk 0:00:14.7]} 36... a4 {[%clk 0:00:15.4]} 37. Kd3
{[%clk 0:00:14.6]} 37... a3 {[%clk 0:00:15.8]} 38. Kc2 {[%clk 0:00:15.5]} 38...
a2 {[%clk 0:00:15.9]} 39. Kb3 {[%clk 0:00:15.3]} 39... a1=Q {[%clk 0:00:15.7]}
0-1

[Event "*** Titled Tuesday Blitz"]
[Site "Chess.com"]
[Date "2021.03.30"]
[Round "7"]
[White "andy_rekt"]
[Black "FGHSMN"]
[Result "0-1"]
[WhiteElo "2296"]
[BlackElo "2641"]
[TimeControl "180+1"]
[EndTime "11:18:18 PDT"]
[Termination "FGHSMN won by checkmate"]

1. d4 {[%clk 0:03:00.9]} 1... Nf6 {[%clk 0:02:58.8]} 2. c4 {[%clk 0:03:01]} 2...
e6 {[%clk 0:02:58]} 3. Nc3 {[%clk 0:03:01.2]} 3... d5 {[%clk 0:02:57]} 4. Nf3
{[%clk 0:03:00.5]} 4... c6 {[%clk 0:02:56.2]} 5. g3 {[%clk 0:02:43.4]} 5... dxc4
{[%clk 0:02:53.3]} 6. Bg2 {[%clk 0:02:43.3]} 6... b5 {[%clk 0:02:52.6]} 7. O-O
{[%clk 0:02:43.2]} 7... Bb7 {[%clk 0:02:47.5]} 8. e4 {[%clk 0:02:43.1]} 8... b4
{[%clk 0:02:29.3]} 9. e5 {[%clk 0:02:43.1]} 9... Nd5 {[%clk 0:02:24]} 10. Ne4
{[%clk 0:02:37.7]} 10... Nd7 {[%clk 0:02:23.3]} 11. Nfg5 {[%clk 0:02:36.9]}
11... Be7 {[%clk 0:02:19.2]} 12. Qh5 {[%clk 0:02:36.6]} 12... g6 {[%clk
0:02:15.2]} 13. Qh3 {[%clk 0:02:34]} 13... Nf8 {[%clk 0:02:08.4]} 14. Bd2 {[%clk
0:02:04.2]} 14... Qc7 {[%clk 0:02:01.8]} 15. Rac1 {[%clk 0:01:58.2]} 15... h6
{[%clk 0:01:57.3]} 16. Rxc4 {[%clk 0:01:44.6]} 16... Ba6 {[%clk 0:01:55.5]} 17.
Rfc1 {[%clk 0:01:43.7]} 17... Bxc4 {[%clk 0:01:52.2]} 18. Rxc4 {[%clk
0:01:44.6]} 18... Qd7 {[%clk 0:01:46.4]} 19. Nc5 {[%clk 0:01:30.5]} 19... Bxc5
{[%clk 0:01:45.5]} 20. Rxc5 {[%clk 0:01:30.6]} 20... Qe7 {[%clk 0:01:34.4]} 21.
Ne4 {[%clk 0:01:29.3]} 21... Nd7 {[%clk 0:01:32.6]} 22. Nd6+ {[%clk 0:01:27.9]}
22... Kf8 {[%clk 0:01:32.2]} 23. Rxc6 {[%clk 0:01:25.8]} 23... Kg7 {[%clk
0:01:31.3]} 24. Bxd5 {[%clk 0:01:16.7]} 24... exd5 {[%clk 0:01:32.2]} 25. Rc7
{[%clk 0:01:17]} 25... Rad8 {[%clk 0:01:29.1]} 26. Bxb4 {[%clk 0:01:15.3]} 26...
Kh7 {[%clk 0:01:16.9]} 27. a3 {[%clk 0:01:05.6]} 27... a5 {[%clk 0:01:09.9]} 28.
Bxa5 {[%clk 0:01:00.6]} 28... f5 {[%clk 0:01:06.5]} 29. Bb4 {[%clk 0:00:56.1]}
29... Qe6 {[%clk 0:01:05.8]} 30. Qf1 {[%clk 0:00:38.5]} 30... Rhg8 {[%clk
0:00:59.9]} 31. Qb5 {[%clk 0:00:38.1]} 31... Rg7 {[%clk 0:00:58.4]} 32. a4
{[%clk 0:00:37.5]} 32... f4 {[%clk 0:00:53.9]} 33. gxf4 {[%clk 0:00:35.7]} 33...
Rf8 {[%clk 0:00:49.5]} 34. Qd3 {[%clk 0:00:17.4]} 34... Rxf4 {[%clk 0:00:45.7]}
35. Bd2 {[%clk 0:00:17.5]} 35... Qg4+ {[%clk 0:00:40.5]} 36. Qg3 {[%clk
0:00:17.6]} 36... Qd1+ {[%clk 0:00:39.4]} 37. Kg2 {[%clk 0:00:17.1]} 37... Rg4
{[%clk 0:00:38.8]} 38. Be3 {[%clk 0:00:14.3]} 38... Rxg3+ {[%clk 0:00:38.4]} 39.
hxg3 {[%clk 0:00:15.2]} 39... Nxe5 {[%clk 0:00:29.7]} 40. Rxg7+ {[%clk 0:00:14]}
40... Kxg7 {[%clk 0:00:30.6]} 41. dxe5 {[%clk 0:00:14.6]} 41... d4 {[%clk
0:00:29.4]} 42. Bf4 {[%clk 0:00:14.2]} 42... d3 {[%clk 0:00:29]} 43. Nc4 {[%clk
0:00:13.6]} 43... Qxa4 {[%clk 0:00:27.4]} 44. Nd2 {[%clk 0:00:11.5]} 44... Qc6+
{[%clk 0:00:27.4]} 45. Kf1 {[%clk 0:00:11.1]} 45... Qh1# {[%clk 0:00:26.4]} 0-1

[Event "*** Titled Tuesday Blitz"]
[Site "Chess.com"]
[Date "2021.03.30"]
[Round "7"]
[White "VladaSviridova"]
[Black "kekic76"]
[Result "0-1"]
[WhiteElo "2241"]
[BlackElo "2377"]
[TimeControl "180+1"]
[EndTime "11:18:19 PDT"]
[Termination "kekic76 won by resignation"]

1. d4 {[%clk 0:03:00.9]} 1... d6 {[%clk 0:02:59.6]} 2. Nf3 {[%clk 0:03:00.5]}
2... Nc6 {[%clk 0:02:59.4]} 3. c4 {[%clk 0:03:01.1]} 3... e5 {[%clk 0:02:59.6]}
4. d5 {[%clk 0:02:58.6]} 4... Nce7 {[%clk 0:02:58.9]} 5. e4 {[%clk 0:02:58.5]}
5... f5 {[%clk 0:02:59.4]} 6. exf5 {[%clk 0:02:55.5]} 6... Bxf5 {[%clk
0:02:58.6]} 7. g3 {[%clk 0:02:55.8]} 7... Nf6 {[%clk 0:02:58.5]} 8. Bg2 {[%clk
0:02:56.4]} 8... g6 {[%clk 0:02:56.3]} 9. Nc3 {[%clk 0:02:50.8]} 9... Bg7 {[%clk
0:02:56.2]} 10. O-O {[%clk 0:02:49.6]} 10... O-O {[%clk 0:02:55.6]} 11. h3
{[%clk 0:02:45.9]} 11... Ne4 {[%clk 0:02:55.3]} 12. Nxe4 {[%clk 0:02:42.5]}
12... Bxe4 {[%clk 0:02:56.2]} 13. Ng5 {[%clk 0:02:37.6]} 13... Bf5 {[%clk
0:02:49.5]} 14. g4 {[%clk 0:02:34.3]} 14... Bd7 {[%clk 0:02:48.8]} 15. Be3
{[%clk 0:02:08]} 15... h6 {[%clk 0:02:46.3]} 16. Ne4 {[%clk 0:01:48]} 16... b6
{[%clk 0:02:45.4]} 17. Qd2 {[%clk 0:01:47.4]} 17... Kh7 {[%clk 0:02:44.6]} 18.
Ng3 {[%clk 0:01:43.6]} 18... a5 {[%clk 0:02:41.4]} 19. Be4 {[%clk 0:01:40.2]}
19... Qe8 {[%clk 0:02:37.9]} 20. Qd3 {[%clk 0:01:39.8]} 20... Kg8 {[%clk
0:02:35.2]} 21. Qd2 {[%clk 0:01:32.4]} 21... Kh7 {[%clk 0:02:34.5]} 22. f3
{[%clk 0:01:32.4]} 22... Qf7 {[%clk 0:02:30.5]} 23. Kg2 {[%clk 0:01:31.4]} 23...
Rh8 {[%clk 0:02:25.7]} 24. h4 {[%clk 0:01:25.6]} 24... Raf8 {[%clk 0:02:18.8]}
25. Qd3 {[%clk 0:01:21.3]} 25... Kg8 {[%clk 0:02:18.5]} 26. b3 {[%clk
0:01:14.3]} 26... h5 {[%clk 0:02:13.4]} 27. gxh5 {[%clk 0:00:56.6]} 27... gxh5
{[%clk 0:02:06.1]} 28. Bg5 {[%clk 0:00:55.3]} 28... Bh6 {[%clk 0:02:03.1]} 29.
f4 {[%clk 0:00:52.9]} 29... exf4 {[%clk 0:01:52.5]} 30. Rxf4 {[%clk 0:00:52.6]}
30... Qxf4 {[%clk 0:01:44.3]} 31. Bxf4 {[%clk 0:00:51.2]} 31... Bxf4 {[%clk
0:01:45.2]} 32. Rf1 {[%clk 0:00:47.5]} 32... Rh6 {[%clk 0:01:40.8]} 33. Rf2
{[%clk 0:00:42.2]} 33... Rff6 {[%clk 0:01:33]} 34. a3 {[%clk 0:00:31.7]} 34...
Bg4 {[%clk 0:01:31.9]} 35. Ne2 {[%clk 0:00:18.2]} 35... Be5 {[%clk 0:01:27.5]}
36. Rxf6 {[%clk 0:00:17.3]} 36... Rxf6 {[%clk 0:01:28.4]} 37. Ng3 {[%clk
0:00:16.7]} 37... Kg7 {[%clk 0:01:21.8]} 38. b4 {[%clk 0:00:16.6]} 38... axb4
{[%clk 0:01:21.3]} 39. axb4 {[%clk 0:00:17]} 39... Ng6 {[%clk 0:01:20.4]} 40.
Bxg6 {[%clk 0:00:15.8]} 40... Rxg6 {[%clk 0:01:20.9]} 41. Kf2 {[%clk 0:00:14.5]}
41... Rf6+ {[%clk 0:01:12.5]} 42. Kg1 {[%clk 0:00:14.1]} 42... Rf4 {[%clk
0:01:12.5]} 43. Ne4 {[%clk 0:00:12.6]} 43... Bf5 {[%clk 0:01:11]} 44. Qe3 {[%clk
0:00:08.1]} 44... Bxe4 {[%clk 0:01:09.8]} 45. c5 {[%clk 0:00:06.4]} 45... bxc5
{[%clk 0:01:10.7]} 46. bxc5 {[%clk 0:00:06.2]} 46... Bxd5 {[%clk 0:00:59.6]} 47.
cxd6 {[%clk 0:00:05.6]} 47... Bd4 {[%clk 0:00:48.9]} 48. Qxd4+ {[%clk
0:00:02.5]} 48... Rxd4 {[%clk 0:00:48.5]} 49. dxc7 {[%clk 0:00:02.8]} 49... Bb7
{[%clk 0:00:47.9]} 0-1

[Event "*** Titled Tuesday Blitz"]
[Site "Chess.com"]
[Date "2021.03.30"]
[Round "7"]
[White "OhanyanEminChess"]
[Black "bait_or_mate"]
[Result "1-0"]
[WhiteElo "2685"]
[BlackElo "2537"]
[TimeControl "180+1"]
[EndTime "11:18:23 PDT"]
[Termination "OhanyanEminChess won on time"]

1. e4 {[%clk 0:03:00.2]} 1... c5 {[%clk 0:02:43.5]} 2. Nf3 {[%clk 0:02:57.2]}
2... e6 {[%clk 0:02:43.5]} 3. d4 {[%clk 0:02:48.2]} 3... cxd4 {[%clk 0:02:44.4]}
4. Nxd4 {[%clk 0:02:49.1]} 4... Nc6 {[%clk 0:02:44.2]} 5. Nc3 {[%clk 0:02:49.2]}
5... Qc7 {[%clk 0:02:44.5]} 6. Ndb5 {[%clk 0:02:49.5]} 6... Qb8 {[%clk
0:02:43.9]} 7. Be3 {[%clk 0:02:50.2]} 7... a6 {[%clk 0:02:32.6]} 8. Bb6 {[%clk
0:02:50.2]} 8... axb5 {[%clk 0:02:33]} 9. Nxb5 {[%clk 0:02:51.1]} 9... Bb4+
{[%clk 0:02:33.1]} 10. c3 {[%clk 0:02:39.3]} 10... Ba5 {[%clk 0:02:32.3]} 11.
Nd6+ {[%clk 0:02:40]} 11... Kf8 {[%clk 0:02:29.4]} 12. Bc5 {[%clk 0:02:39.7]}
12... Nge7 {[%clk 0:02:24.8]} 13. Qh5 {[%clk 0:02:29.8]} 13... Nd8 {[%clk
0:02:01.1]} 14. O-O-O {[%clk 0:02:25.1]} 14... b6 {[%clk 0:01:48]} 15. Ba3
{[%clk 0:02:22.9]} 15... Bxc3 {[%clk 0:01:47.7]} 16. Bb5 {[%clk 0:02:02]} 16...
Rxa3 {[%clk 0:01:39.3]} 17. bxa3 {[%clk 0:02:00.4]} 17... Qa8 {[%clk 0:01:33.8]}
18. Kc2 {[%clk 0:01:37.9]} 18... Qxa3 {[%clk 0:01:22.5]} 19. Nc4 {[%clk
0:01:36.4]} 19... Qxa2+ {[%clk 0:00:59.5]} 20. Kxc3 {[%clk 0:01:36.3]} 20... d5
{[%clk 0:00:48.3]} 21. exd5 {[%clk 0:01:33.6]} 21... Nxd5+ {[%clk 0:00:49.2]}
22. Rxd5 {[%clk 0:01:34]} 22... exd5 {[%clk 0:00:34.9]} 23. Qxd5 {[%clk
0:01:34.9]} 23... Ne6 {[%clk 0:00:19]} 24. Qd6+ {[%clk 0:01:19.9]} 24... Kg8
{[%clk 0:00:18.6]} 25. Qb8 {[%clk 0:01:18.3]} 25... h6 {[%clk 0:00:11.2]} 26.
Qxc8+ {[%clk 0:01:16.7]} 26... Kh7 {[%clk 0:00:11.7]} 27. Qb7 {[%clk 0:01:15.3]}
27... Qxf2 {[%clk 0:00:10.9]} 28. Qe4+ {[%clk 0:01:14.2]} 28... g6 {[%clk
0:00:09.2]} 29. Rd1 {[%clk 0:00:58.8]} 29... Nc5 {[%clk 0:00:06.1]} 30. Qf3
{[%clk 0:00:56.8]} 30... Qxf3+ {[%clk 0:00:04.6]} 31. gxf3 {[%clk 0:00:57.7]}
31... Rc8 {[%clk 0:00:04.5]} 32. Kb4 {[%clk 0:00:56.8]} 32... Kg7 {[%clk
0:00:04.2]} 33. Nxb6 {[%clk 0:00:57.2]} 33... Rc7 {[%clk 0:00:03.6]} 34. Rd8
{[%clk 0:00:51.8]} 34... Ne6 {[%clk 0:00:03.5]} 35. Rb8 {[%clk 0:00:48.7]} 35...
Rc2 {[%clk 0:00:03.6]} 36. Rb7 {[%clk 0:00:47.6]} 36... Rxh2 {[%clk 0:00:03.1]}
37. Bc4 {[%clk 0:00:46.8]} 37... Kf6 {[%clk 0:00:01.4]} 38. Nd5+ {[%clk
0:00:40.5]} 38... Kf5 {[%clk 0:00:01.6]} 39. Rxf7+ {[%clk 0:00:40.2]} 39... Kg5
{[%clk 0:00:02]} 40. f4+ {[%clk 0:00:39.6]} 40... Kg4 {[%clk 0:00:01.5]} 41.
Nf6+ {[%clk 0:00:27.9]} 41... Kg3 {[%clk 0:00:01.2]} 42. Bxe6 {[%clk 0:00:27.2]}
42... Rf2 {[%clk 0:00:01.4]} 43. Ne4+ {[%clk 0:00:27.2]} 1-0

[Event "*** Titled Tuesday Blitz"]
[Site "Chess.com"]
[Date "2021.03.30"]
[Round "7"]
[White "TioCridineno"]
[Black "KubaGepard"]
[Result "0-1"]
[WhiteElo "2280"]
[BlackElo "2417"]
[TimeControl "180+1"]
[EndTime "11:18:23 PDT"]
[Termination "KubaGepard won by resignation"]

1. e4 {[%clk 0:03:00.9]} 1... e5 {[%clk 0:02:57.7]} 2. Nc3 {[%clk 0:03:00.2]}
2... Nf6 {[%clk 0:02:56.9]} 3. f4 {[%clk 0:03:00]} 3... d5 {[%clk 0:02:55.9]} 4.
fxe5 {[%clk 0:03:00]} 4... Nxe4 {[%clk 0:02:55.8]} 5. d3 {[%clk 0:02:59.9]} 5...
Nxc3 {[%clk 0:02:55.6]} 6. bxc3 {[%clk 0:02:59.9]} 6... d4 {[%clk 0:02:56.5]} 7.
Nf3 {[%clk 0:02:59.6]} 7... Nc6 {[%clk 0:02:53.5]} 8. Be2 {[%clk 0:02:59.2]}
8... Bc5 {[%clk 0:02:50.4]} 9. O-O {[%clk 0:02:58.9]} 9... dxc3+ {[%clk
0:02:50.2]} 10. Kh1 {[%clk 0:02:59.6]} 10... h6 {[%clk 0:02:47.3]} 11. Qe1
{[%clk 0:02:59.7]} 11... Be6 {[%clk 0:02:38]} 12. Qg3 {[%clk 0:02:58.8]} 12...
g5 {[%clk 0:02:27.6]} 13. h3 {[%clk 0:02:38.2]} 13... Qd7 {[%clk 0:02:23.8]} 14.
a4 {[%clk 0:02:34.7]} 14... O-O-O {[%clk 0:02:14.2]} 15. Ba3 {[%clk 0:02:32.1]}
15... Be3 {[%clk 0:02:11.8]} 16. Rab1 {[%clk 0:02:20.7]} 16... Bf4 {[%clk
0:02:06.9]} 17. Qf2 {[%clk 0:02:19]} 17... b6 {[%clk 0:02:02.2]} 18. a5 {[%clk
0:01:57.7]} 18... Nxe5 {[%clk 0:01:50.4]} 19. Nxe5 {[%clk 0:01:55.1]} 19... Bxe5
{[%clk 0:01:47.2]} 20. axb6 {[%clk 0:01:55.3]} 20... cxb6 {[%clk 0:01:45.6]} 21.
Bf3 {[%clk 0:01:55.4]} 21... Bd4 {[%clk 0:01:41.6]} 22. Qg3 {[%clk 0:01:53.5]}
22... Qc7 {[%clk 0:01:39.9]} 23. Qe1 {[%clk 0:01:48.7]} 23... Qe5 {[%clk
0:01:15.7]} 24. Qd1 {[%clk 0:01:14.9]} 24... Qg3 {[%clk 0:01:06.2]} 25. Qe1
{[%clk 0:01:02.8]} 25... Qxe1 {[%clk 0:00:57.4]} 26. Rfxe1 {[%clk 0:01:02.8]}
26... Rhe8 {[%clk 0:00:55.8]} 27. Ra1 {[%clk 0:00:59.9]} 27... Bf5 {[%clk
0:00:48]} 28. Rf1 {[%clk 0:00:58.1]} 28... Bg6 {[%clk 0:00:44.1]} 29. Bc1 {[%clk
0:00:47.5]} 29... a5 {[%clk 0:00:42.4]} 30. Ra4 {[%clk 0:00:37.2]} 30... Bc5
{[%clk 0:00:31.8]} 31. Ba3 {[%clk 0:00:32.8]} 31... Bxa3 {[%clk 0:00:20.9]} 32.
Rxa3 {[%clk 0:00:30.2]} 32... Re7 {[%clk 0:00:20.6]} 33. Rxc3+ {[%clk
0:00:30.1]} 33... Rc7 {[%clk 0:00:20.6]} 34. Rb3 {[%clk 0:00:27.5]} 34... Rd6
{[%clk 0:00:20.8]} 35. Rf2 {[%clk 0:00:25.9]} 35... Kd8 {[%clk 0:00:20.4]} 36.
Rd2 {[%clk 0:00:24.9]} 36... Rc5 {[%clk 0:00:20.1]} 37. Kg1 {[%clk 0:00:24.8]}
37... Kc7 {[%clk 0:00:20.1]} 38. Kf2 {[%clk 0:00:24.7]} 38... b5 {[%clk
0:00:20.3]} 39. Ra3 {[%clk 0:00:23.9]} 39... a4 {[%clk 0:00:20.2]} 40. Ra2
{[%clk 0:00:23.2]} 40... Kb6 {[%clk 0:00:20.3]} 41. g4 {[%clk 0:00:23.1]} 41...
Rc3 {[%clk 0:00:20.5]} 42. Ke3 {[%clk 0:00:22.8]} 42... Kc5 {[%clk 0:00:20.3]}
43. Be4 {[%clk 0:00:21.9]} 43... Re6 {[%clk 0:00:19.6]} 44. Kf3 {[%clk
0:00:20.4]} 44... Bxe4+ {[%clk 0:00:19.2]} 45. Kf2 {[%clk 0:00:20.5]} 45... Bd5
{[%clk 0:00:19.4]} 46. Kg3 {[%clk 0:00:19.2]} 46... Bxa2 {[%clk 0:00:18.6]} 0-1